[Event "Chhattisgarh Masters GM 2022"]
[Site "Chhattisgarh"]
[Date "2022.09.27"]
[Round "9.24"]
[White "Vignesh B"]
[Black "Pattnayak Nilsu"]
[Result "1-0"]
[ECO "C00"]
[WhiteElo "2083"]
[BlackElo "2002"]
[Annotator "TA"]
[PlyCount "79"]
[EventDate "2022.09.19"]
[EventCountry "IND"]
[SourceTitle "playchess.com"]
[Source "ChessBase"]
[SourceQuality "1"]
[TimeControl "5400+30"]

{[%evp 9,79,0,12,14,10,18,11,10,77,42,45,33,35,39,58,57,53,30,146,140,138,154,129,30,17,25,22,12,12,11,102,91,101,110,91,84,160,47,166,16,212,193,397,390,380,358,336,358,311,281,664,30,3,0,0,0,0,0,0,0,0,0,0,0,2318,2234,1752,1603,29997,29998,29998,29999]} 1. Nf3 {[%emt 0:00:30]} e6 2. e4 {[%emt 0:00:30]} d5 {[%emt 1:31:30]} 3. Nc3 d4 {[%emt 0:00:00]} 4. Ne2 {[%emt 0:00:00]} c5 {[%emt 0:00:00]} 5. c3 {[%emt 0:00:00]} dxc3 {[%emt 0:00:00]} 6. Nxc3 {[%emt 0:00:32] C00: French: Unusual White 2nd moves.} Nc6 {[%emt 0:00:00] Against d4} 7. Bb5 {[%emt 0:00:46]} Bd7 {[%emt 0:00:00]} 8. O-O {[%emt 0:05:21] The position is equal.} Bd6 {[%emt 0:00:00] [#]} (8... Nge7 $11) 9. Bxc6 $146 {[%emt 0:00:44]} ({Predecessor:} 9. d4 cxd4 10. Bxc6 Bxc6 11. Nxd4 Rc8 12. Nxc6 Rxc6 13. Nb5 Bb8 14. Qa4 Nf6 15. Nd4 Qc7 16. g3 Nxe4 {1-0 (34) Laurent,J (2291)-Geirnaert,S (2356) Belgium 2011}) 9... Bxc6 {[%emt 0:00:00]} 10. d4 {[%emt 0:00:08]} Ne7 {[%emt 0:00:00]} 11. Be3 {[%emt 0:10:14]} cxd4 {[%emt 0:00:00]} 12. Qxd4 {[%emt 0:01:37]} O-O {[%emt 0:00:00]} 13. Rfd1 {[%emt 0:02:00]} Bc7 {[%emt 0:00:00]} (13... Nc8) (13... Nc8 $1 $11) 14. Qb4 $1 $16 {[%emt 0:01:56]} Ba5 {[%emt 0:00:00]} 15. Qa3 {[%emt 0:01:28] White has more active pieces. The black rooks are badly placed.} (15. Rxd8 Bxb4 16. Rxa8 Rxa8) (15. Rxd8 $6 Bxb4 16. Rxa8 Rxa8 $11) 15... Qc7 {[%emt 0:00:00]} 16. Bc5 {[%emt 0:00:28]} (16. b4 Bb6 17. b5) ({White has to play} 16. b4 $1 $16 {[%cal Rb4a5]} Bb6 17. b5 Bxe3 18. fxe3) 16... Bxc3 $11 {[%emt 0:00:00]} 17. Bd6 {[%emt 0:30:32][%cal Bc5d6,Bd6e5,Be5g7,Bg7f6][%mdl 32]} Bxb2 {[%emt 0:00:00]} 18. Qxb2 {[%emt 0:00:53]} (18. Bxc7 $2 {is the wrong capture.} Bxa3 19. Re1 Rac8 $19) 18... Qd8 {[%emt 0:00:00]} 19. Rd4 {[%emt 0:00:31]} Re8 {[%emt 0:00:00]} (19... f6 $1 $11) 20. Be5 $1 $36 {[%emt 0:03:44][%mdl 2048] White is on the roll.} Qa5 {[%emt 0:00:00] [#]} 21. Bxg7 {[%emt 0:01:07][%cal Og7h8][%mdl 512] Black must now prevent Bh8!} Ng6 {[%emt 0:00:00] Prevents Bh8. And now ...e5 would win.} 22. Bf6 {[%emt 0:05:35] Strongly threatening e5.} Qh5 {[%emt 0:00:00]} (22... Rac8 $142) 23. e5 {[%emt 0:17:58]} (23. Re1 $1 $16) 23... Bd5 {[%emt 0:00:00]} ({Black should play} 23... Bxf3 $14 24. gxf3 Qxf3) 24. Qd2 {[%emt 0:02:14]} ({White should try} 24. Re1 $18) 24... Rec8 $2 {[%emt 0:00:00]} (24... Bxf3 $11 {and Black has nothing to worry.} 25. Qe3 Bxg2 26. Kxg2 Rac8) 25. Re1 {[%emt 0:01:03][%cal Ba1e1,Be1e4,Be4g4][%mdl 32] Hoping for Ng5.} Rc6 $2 {[%emt 0:00:00]} (25... Bxf3 26. gxf3 b5) 26. h4 $18 {[%emt 0:01:25] g4 is the strong threat.} Bxf3 {[%emt 0:00:00]} 27. gxf3 {[%emt 0:00:07]} h6 {[%emt 0:02:39]} 28. Ree4 {[%emt 0:05:00]} Kh7 {[%emt 0:06:27]} 29. Rg4 {[%emt 0:01:03]} Qf5 $2 {[%emt 0:00:15] [#]} (29... Rcc8 30. Rd7 Rf8) 30. Rd8 $2 {[%emt 0:05:37]} (30. Rxg6 $1 $18 {[%mdl 512]} Qxg6+ 31. Rg4) 30... Qb1+ $1 $11 {[%emt 0:00:07]} (30... Rxd8 $2 31. Qxd8 h5 32. Qd7 $1 Rc1+ 33. Kh2 Qxe5+ 34. Bxe5 $18) 31. Kh2 {[%emt 0:02:09]} Rc1 $1 {[%emt 0:00:15]} 32. Qxc1 {[%emt 0:00:29] Really sharp!} (32. Rxa8 $2 {leads to mate.} Rh1+ 33. Kg3 Qg1#) 32... Qxc1 {[%emt 0:00:31]} 33. Rxa8 {[%emt 0:00:04][%cal Oa8h8] White wants to mate with Rh8+!} h5 $1 {[%emt 0:00:15]} 34. Rg5 {[%emt 0:01:09]} Qf4+ {[%emt 0:00:26]} 35. Kg1 {[%emt 0:00:22]} Qxf3 {[%emt 0:01:54]} 36. Rd8 {[%emt 0:00:41]} Kh6 $2 {[%emt 0:02:06][%mdl 8192] [#]} (36... Qe2 $11) 37. Rg8 $1 $18 {[%emt 0:00:24][%cal Og5g6] Threatening mate with R5xg6+!} Qd1+ {[%emt 0:00:53]} 38. Kh2 {[%emt 0:00:06][%cal Og5g6] White threatens R5xg6+! and mate.} Qf3 {[%emt 0:00:11] [#]} 39. R5xg6+ $1 {[%emt 0:00:06][%mdl 512]} Kh7 {[%emt 0:01:04]} 40. R6g7+ {[%emt 0:00:06] Weighted Error Value: White=0.33/Black=0.62} 1-0